fUST/lending_fUST_20251119
["ID","MTS","AMOUNT","RATE_DAILY","PERIOD"]
[394406163,1763535051623,-170.946416,0.00058,120]
[394406164,1763535051634,-151.0,0.00058,120]
[394406165,1763535051645,-151.0,0.00058,120]
[394406166,1763535051657,-321.445569,0.00058,120]
[394406167,1763535051668,-321.445569,0.00058,120]
[394406168,1763535051679,-321.445569,0.00058,120]
[394406169,1763535051689,-321.445569,0.00058,120]
[394406170,1763535051700,-632.754251,0.00058,120]
[394406171,1763535051710,-632.754251,0.00058,120]
[394406172,1763535051721,-632.754251,0.00058,120]
[394406173,1763535051732,-151.0,0.00058,120]
[394406174,1763535051743,-151.0,0.00058,120]
[394406175,1763535051754,-189.187773,0.00058,120]
[394406176,1763535051765,-632.754251,0.00058,120]
[394406177,1763535051776,-151.0,0.00058,120]
[394406178,1763535051786,-189.187773,0.00058,120]
[394406179,1763535051797,-151.0,0.00058,120]
[394406180,1763535051808,-189.187773,0.00058,120]
[394406181,1763535051820,-151.0,0.00058,120]
[394406182,1763535051831,-189.187773,0.00058,120]
[394406183,1763535051841,-151.0,0.00058,120]
[394406184,1763535051852,-151.0,0.00058,120]
[394406185,1763535051864,-151.0,0.00058,120]
[394406186,1763535051878,-151.0,0.00058,120]
[394406187,1763535051888,-246.833788,0.00058,120]
[394406188,1763535051899,-151.0,0.00058,120]
[394406189,1763535051909,-263.498483,0.00058,120]
[394406190,1763535051923,-151.0,0.00058,120]
[394406191,1763535051933,-151.0,0.00058,120]
[394406192,1763535051944,-151.0,0.00058,120]
[394406193,1763535051954,-151.0,0.00058,120]
[394406194,1763535051965,-151.0,0.00058,120]
[394406195,1763535051976,-151.0,0.00058,60]
[394406196,1763535051986,-151.0,0.00058,120]
[394406197,1763535051997,-284.64552,0.00058,120]
[394406198,1763535052007,-151.0,0.00058,120]
[394406199,1763535052018,-151.0,0.00058,120]
[394406200,1763535052028,-151.0,0.00058,120]
[394406201,1763535052038,-202.145556,0.00058,120]
[394406202,1763535052048,-151.0,0.00058,120]
[394406203,1763535052058,-171.445903,0.00058,120]
[394406204,1763535052069,-171.445903,0.00058,120]
[394406205,1763535052079,-171.445903,0.00058,120]
[394406206,1763535052090,-171.445903,0.00058,120]
[394406207,1763535052100,-151.0,0.00058,90]
[394406208,1763535052111,-151.0,0.00058,120]
[394406209,1763535052121,-151.0,0.00058,120]
[394406210,1763535052132,-154.13258,0.00058,120]
[394406211,1763535052142,-151.0,0.00058,120]
[394406212,1763535052153,-151.0,0.00058,2]
[394406213,1763535052163,-151.0,0.00058,2]
[394406214,1763535052172,-151.0,0.00058,15]
[394406215,1763535052181,-151.0,0.00058,15]
[394406216,1763535052191,-151.0,0.00058,15]
[394406217,1763535052199,-151.0,0.00058,15]
[394406218,1763535052209,-151.0,0.00058,120]
[394406219,1763535052218,-151.0,0.00058,120]
[394406220,1763535052228,-226.466376,0.00058,120]
[394406221,1763535052237,-151.0,0.00058,120]
[394406222,1763535052246,-151.0,0.00058,120]
[394406223,1763535052256,-151.0,0.00058,120]
[394406224,1763535052265,-151.0,0.00058,120]
[394406225,1763535052274,-160.070895,0.00058,120]
[394406226,1763535052284,-231.129182,0.00058,120]
[394406227,1763535052293,-160.070895,0.00058,120]
[394406228,1763535052429,-231.129182,0.00058,120]
[394406229,1763535052440,-160.070895,0.00058,120]
[394406230,1763535052449,-259.977634,0.00058,7]
[394406231,1763535052458,-244.943787,0.00058,120]
[394406232,1763535052467,-231.129182,0.00058,120]
[394406233,1763535052477,-160.070895,0.00058,120]
[394406234,1763535052486,-244.943787,0.00058,120]
[394406235,1763535052495,-231.129182,0.00058,120]
[394406236,1763535052504,-259.977634,0.00058,7]
[394406237,1763535052513,-153.977307,0.00058,30]
[394406238,1763535052525,-244.943787,0.00058,120]
[394406239,1763535052534,-259.977634,0.00058,7]
[394406240,1763535052543,-244.943787,0.00058,120]
[394406241,1763535052552,-259.977634,0.00058,7]
[394406242,1763535052561,-151.0,0.00058,120]
[394406243,1763535052570,-151.0,0.00058,120]
[394406244,1763535052579,-151.0,0.00058,120]
[394406245,1763535052588,-151.0,0.00058,120]
[394406246,1763535052597,-151.0,0.00058,120]
[394406247,1763535052606,-151.0,0.00058,120]
[394406248,1763535052616,-151.0,0.00058,120]
[394406249,1763535052624,-151.0,0.00058,120]
[394406250,1763535052634,-151.0,0.00058,120]
[394406251,1763535052643,-151.0,0.00058,120]
[394406252,1763535052652,-151.0,0.00058,120]
[394406253,1763535052662,-151.0,0.00058,120]
[394406254,1763535052671,-151.0,0.00058,120]
[394406255,1763535052680,-151.0,0.00058,120]
[394406256,1763535052690,-151.0,0.00058,120]
[394406257,1763535052699,-151.0,0.00058,120]
[394406258,1763535052708,-151.0,0.00058,120]
[394406259,1763535052718,-151.0,0.00058,120]
[394406260,1763535052727,-151.0,0.00058,120]
[394406261,1763535052736,-1412.18,0.000582,30]
[394406262,1763535052745,-164.0,0.000583,120]
[394406263,1763535052754,-2500.0,0.000584,120]
[394406264,1763535052763,-4682.8096977,0.0005899,30]
[394406265,1763535052773,-10000.0,0.00059,120]
[394406266,1763535052782,-1000.0,0.00059,120]
[394406267,1763535052791,-2227.03792797,0.00059103,28]
[394406268,1763535052800,-1132.720159,0.0005912,2]
[394406269,1763535052809,-198783.8269,0.000592,120]
[394406270,1763535052820,-239.96575111,0.00059898,120]
[394406271,1763535052829,-500.0,0.00059999,120]
[394406272,1763535052838,-188.74309982,0.00059999,7]
[394406273,1763535052847,-500.0,0.00059999,120]
[394406274,1763535052857,-500.0,0.00059999,120]
[394406275,1763535052866,-322.36018092,0.00059999,120]
[394406276,1763535052879,-546.60040163,0.00059999,120]
[394406277,1763535052888,-500.0,0.00059999,120]
[394406278,1763535052897,-500.0,0.00059999,120]
[394406279,1763535052906,-500.0,0.00059999,120]
[394406280,1763535052915,-240.12416283,0.00059999,120]
[394406281,1763535052924,-500.0,0.00059999,7]
[394406282,1763535052933,-500.0,0.00059999,7]
[394406283,1763535052942,-595.19710796,0.00059999,7]
[394406284,1763535052953,-10000.0,0.0006,120]
[394406285,1763535052962,-200.0,0.0006,120]
[394406286,1763535052971,-5000.0,0.0006,120]
[394406287,1763535052980,-1998.28884961,0.0006,120]
[394406288,1763535052989,-2983.436901,0.0006,5]
[394406289,1763535052998,-16549.24,0.0006,120]
[394406290,1763535053007,-1000.0,0.0006,120]
[394406291,1763535053016,-179.93433368,0.0006,120]
[394406292,1763535053025,-857.08084572,0.0006,120]
[394406293,1763535053035,-4000.0,0.0006,50]
[394406294,1763535053044,-100000.0,0.0006,120]
[394406295,1763535053053,-3881.18771141,0.0006,120]
[394406296,1763535053063,-1626.928,0.0006,120]
[394406297,1763535053073,-1142.57975454,0.0006,120]
[394406298,1763535053082,-400.87691731,0.0006,30]
[394406299,1763535053091,-1000.0,0.00060107,120]
[394406300,1763535053107,-1000.0,0.00060107,120]
[394406301,1763535053125,-1411.0667356,0.00060673,2]
[394406302,1763535053135,-2000.0,0.00061,120]
[394406303,1763535053145,-10000.0,0.00061,120]
[394406304,1763535053154,-3029.0,0.00061,120]
[394406305,1763535053163,-160500.0,0.00061,90]
[394406306,1763535053173,-1136.0,0.00061,120]
[394406307,1763535053182,-735.4,0.00061,14]
[394406308,1763535053192,-200.0,0.00061176,120]
[394406309,1763535053201,-1613.93,0.00061624,30]
[394406310,1763535053210,-505.02802474,0.00061644,15]
[394406311,1763535053219,-505.0345848,0.00061644,15]
[394406312,1763535053229,-6799.999999,0.0006188,30]
[394406313,1763535053238,-10000.0,0.00062,120]
[394406314,1763535053248,-100000.0,0.00062,120]
[394406315,1763535053257,-290.69791992,0.00062,120]
[394406316,1763535053266,-5000.0,0.00062,120]
[394406317,1763535053275,-6030.62638159,0.00062,30]
[394406318,1763535053284,-1136.0,0.00062,120]
[394406319,1763535053294,-151.0,0.00062,120]
[394406320,1763535053303,-160.070895,0.00062,120]
[394406321,1763535053314,-231.129182,0.00062,120]
[394406322,1763535053324,-160.070895,0.00062,120]
[394406323,1763535053334,-231.129182,0.00062,120]
[394406324,1763535053343,-160.070895,0.00062,120]
[394406325,1763535053354,-259.977634,0.00062,7]
[394406326,1763535053367,-244.943787,0.00062,120]
[394406327,1763535053376,-231.129182,0.00062,120]
[394406328,1763535053386,-160.070895,0.00062,120]
[394406329,1763535053396,-244.943787,0.00062,120]
[394406330,1763535053405,-231.129182,0.00062,120]
[394406331,1763535053415,-259.977634,0.00062,7]
[394406332,1763535053424,-244.943787,0.00062,120]
[394406333,1763535053433,-259.977634,0.00062,7]
[394406334,1763535053442,-244.943787,0.00062,120]
[394406335,1763535053451,-259.977634,0.00062,7]
[394406336,1763535053461,-151.0,0.00062,120]
[394406337,1763535053470,-151.0,0.00062,120]
[394406338,1763535053481,-168.808584,0.00062,120]
[394406339,1763535053490,-151.0,0.00062,120]
[394406340,1763535053499,-164.482002,0.00062,120]
[394406341,1763535053509,-182.270824,0.00062,120]
[394406342,1763535053519,-151.0,0.00062,120]
[394406343,1763535053529,-151.0,0.00062,120]
[394406344,1763535053538,-151.0,0.00062,120]
[394406345,1763535053548,-151.0,0.00062,120]
[394406346,1763535053558,-151.0,0.00062,120]
[394406347,1763535053568,-151.0,0.00062,120]
[394406348,1763535053578,-151.0,0.00062,120]
[394406349,1763535053587,-151.0,0.00062,120]
[394406350,1763535053597,-151.0,0.00062,120]
[394406351,1763535053606,-154.149645,0.00062,120]
[394406352,1763535053616,-295.268941,0.00062,120]
[394406353,1763535053625,-240.381046,0.00062,120]
[394406354,1763535053634,-164.0,0.00063,120]
[394406355,1763535053644,-1136.0,0.00063,120]
[394406356,1763535053654,-151.0,0.00063014,120]
[394406357,1763535053663,-151.0,0.00063014,120]
[394406358,1763535053672,-151.0,0.00063014,120]
[394406359,1763535053682,-151.0,0.00063014,120]
[394406360,1763535053691,-452.0817023,0.000633,120]
[394406361,1763535053702,-194.0,0.00063613,120]
[394406362,1763535053711,-164.289777,0.00063856,120]
[394406363,1763535053721,-151.0,0.00063856,120]
[394406364,1763535053731,-151.0,0.00063856,120]
[394406365,1763535053740,-230.5177075,0.00063856,3]
[394406366,1763535053750,-2000.0,0.00064,120]
[394406367,1763535053760,-100000.0,0.00064,120]
[394406368,1763535053770,-300.0,0.00064,120]
[394406369,1763535053780,-151.0,0.00064,60]
[394406370,1763535053789,-151.0,0.00064,120]
[394406371,1763535053798,-151.0,0.00064,120]
[394406372,1763535053808,-151.0,0.00064,120]
[394406373,1763535053817,-151.0,0.00064,120]
[394406374,1763535053827,-171.445903,0.00064,120]
[394406375,1763535053837,-171.445903,0.00064,120]
[394406376,1763535053846,-171.445903,0.00064,120]
[394406377,1763535053855,-171.445903,0.00064,120]
[394406378,1763535053865,-151.0,0.00064,90]
[394406379,1763535053879,-151.0,0.00064,120]
[394406380,1763535053888,-1136.0,0.00064,120]
[394406381,1763535053897,-319202.8256,0.00064444,30]
[394406382,1763535053907,-151.0,0.00064444,120]
[394406383,1763535053917,-151.0,0.00064444,120]
[394406384,1763535053926,-151.0,0.00064444,120]
[394406385,1763535053935,-196.956863,0.00064444,120]
[394406386,1763535053945,-281.881846,0.00064444,120]
[394406387,1763535053955,-151.0,0.00064444,120]
[394406388,1763535053964,-151.0,0.00064444,120]
[394406389,1763535053973,-151.0,0.00064444,120]
[394406390,1763535053983,-151.0,0.00064444,120]
[394406391,1763535053992,-151.0,0.00064444,120]
[394406392,1763535054001,-151.0,0.00064444,120]
[394406393,1763535054011,-151.0,0.00064444,120]
[394406394,1763535054020,-181.568134,0.00064444,120]
[394406395,1763535054030,-151.0,0.00064444,120]
[394406396,1763535054040,-151.0,0.00064444,120]
[394406397,1763535054049,-221.744624,0.00064444,120]
[394406398,1763535054059,-151.0,0.00064444,120]
[394406399,1763535054068,-151.0,0.00064444,120]
[394406400,1763535054077,-321.445569,0.00064444,120]
[394406401,1763535054087,-321.445569,0.00064444,120]
[394406402,1763535054096,-321.445569,0.00064444,120]
[394406403,1763535054106,-321.445569,0.00064444,120]
[394406404,1763535054116,-632.754251,0.00064444,120]
[394406405,1763535054126,-632.754251,0.00064444,120]
[394406406,1763535054135,-632.754251,0.00064444,120]
[394406407,1763535054144,-151.0,0.00064444,120]
[394406408,1763535054154,-189.187773,0.00064444,120]
[394406409,1763535054163,-151.0,0.00064444,120]
[394406410,1763535054173,-632.754251,0.00064444,120]
[394406411,1763535054182,-151.0,0.00064444,120]
[394406412,1763535054191,-189.187773,0.00064444,120]
[394406413,1763535054201,-151.0,0.00064444,120]
[394406414,1763535054210,-189.187773,0.00064444,120]
[394406415,1763535054219,-293.055096,0.00064444,120]
[394406416,1763535054229,-189.187773,0.00064444,120]
[394406417,1763535054238,-151.0,0.00064444,120]
[394406418,1763535054247,-151.0,0.00064444,120]
[394406419,1763535054256,-151.0,0.00064444,120]
[394406420,1763535054265,-151.0,0.00064444,120]
[394406421,1763535054273,-151.0,0.00064444,120]
[394406422,1763535054282,-151.0,0.00064444,120]
[394406423,1763535054291,-151.0,0.00064444,120]
[394406424,1763535054300,-151.0,0.00064444,120]
[394406425,1763535054309,-151.0,0.00064444,120]
[394406426,1763535054320,-151.0,0.00064444,120]
[394406427,1763535054329,-151.0,0.00064444,120]
[394406428,1763535054338,-151.0,0.00064444,120]
[394406429,1763535054347,-151.0,0.00064444,2]
[394406430,1763535054357,-291.61969,0.00064444,2]
[394406431,1763535054368,-151.0,0.00064444,15]
[394406432,1763535054378,-151.0,0.00064444,15]
[394406433,1763535054388,-151.0,0.00064444,15]
[394406434,1763535054398,-151.0,0.00064444,15]
[394406435,1763535054407,-151.0,0.00064444,120]
[394406436,1763535054416,-151.0,0.00064444,120]
[394406437,1763535054425,-50000.0,0.000649,60]
[394406438,1763535054434,-506.15163965,0.00065,15]
[394406439,1763535054443,-1998.28884961,0.00065,120]
[394406440,1763535054453,-100054.11697351,0.00065,120]
[394406441,1763535054462,-20000.0,0.00065,120]
[394406442,1763535054471,-1136.0,0.00065,120]
[394406443,1763535054480,-1815.67,0.00065047,30]
[394406444,1763535054490,-5000.0,0.00065078,30]
[394406445,1763535054499,-5000.0,0.00065078,30]
[394406446,1763535054508,-5000.0,0.00065078,30]
[394406447,1763535054518,-5000.0,0.00065078,30]
[394406448,1763535054527,-2500.0,0.000654,120]
[394406449,1763535054536,-1132.720159,0.00065609,2]
[394406450,1763535054546,-5000.0,0.00065848,30]
[394406451,1763535054555,-5000.0,0.00065848,30]
[394406452,1763535054566,-4318.51,0.00065848,30]
[394406453,1763535054577,-1000.0,0.00065999,120]
[394406454,1763535054586,-63350.1023808,0.00066,120]
[394406455,1763535054595,-1136.0,0.00066,120]
[394406456,1763535054605,-1539.3455297,0.00066123,4]
[394406457,1763535054615,-2227.03792797,0.00066723,28]
[394406458,1763535054625,-2608.18871842,0.00067,120]
[394406459,1763535054635,-2199.39,0.00067,30]
[394406460,1763535054644,-16170.57,0.00067,2]
[394406461,1763535054654,-8339.05629883,0.00067397,120]
[394406462,1763535054664,-200.0,0.00067673,120]
[394406463,1763535054673,-164.0,0.000677,120]
[394406464,1763535054682,-3168.0,0.00068,120]
[394406465,1763535054691,-5000.0,0.00068,50]
[394406466,1763535054700,-2017.41,0.00068471,30]
[394406467,1763535054710,-3000.0,0.00069,120]
[394406468,1763535054719,-3000.0,0.0006901,120]
[394406469,1763535054729,-3000.0,0.0006902,120]
[394406470,1763535054738,-3000.0,0.0006903,120]
[394406471,1763535054748,-4228.635713,0.0006904,120]
[394406472,1763535054757,-200.0,0.00069184,120]
[394406473,1763535054766,-200.0,0.000694,120]
[394406474,1763535054775,-218.16777,0.000694,120]
[394406475,1763535054784,-217.92387,0.000694,120]
[394406476,1763535054793,-400.17534758,0.00069526,120]
[394406477,1763535054802,-1000.0,0.00069999,120]
[394406478,1763535054811,-5000.0,0.0007,120]
[394406479,1763535054820,-3066.8852909,0.0007,60]
[394406480,1763535054829,-500.0,0.0007,120]
[394406481,1763535054838,-1998.24472818,0.0007,120]
[394406482,1763535054848,-231.646,0.00071121,120]
[394406483,1763535054856,-200.0,0.00071156,120]
[394406484,1763535054866,-200.0,0.00071156,120]
[394406485,1763535054879,-307.83712831,0.00071156,120]
[394406486,1763535054888,-230.5177075,0.00071275,6]
[394406487,1763535054897,-200.0,0.00071444,120]
[394406488,1763535054906,-200.0,0.00071444,120]
[394406489,1763535054916,-200.0,0.00071444,120]
[394406490,1763535054926,-6853.84689891,0.000717,74]
[394406491,1763535054936,-1132.720159,0.00072098,120]
[394406492,1763535054946,-164.0,0.000723,120]
[394406493,1763535054956,-1168.6,0.00073,14]
[394406494,1763535054965,-1292.3898932,0.000733,120]
[394406495,1763535054975,-5000.0,0.00073398,30]
[394406496,1763535054984,-41587.17976125,0.00073465,2]
[394406497,1763535054993,-2500.0,0.000739,120]
[394406498,1763535055002,-200.0,0.00074,120]
[394406499,1763535055011,-5000.0,0.00074137,30]
[394406500,1763535055020,-5000.0,0.00074137,30]
[394406501,1763535055029,-5000.0,0.00074137,30]
[394406502,1763535055038,-4427.66,0.00074137,30]
[394406503,1763535055047,-2227.03792797,0.00074344,28]
[394406504,1763535055056,-1000.0,0.00074443,120]
[394406505,1763535055066,-3788531.5908,0.00074444,30]
[394406506,1763535055078,-157.05812,0.00074444,120]
[394406507,1763535055087,-151.0,0.00074444,120]
[394406508,1763535055097,-151.0,0.00074444,120]
[394406509,1763535055106,-151.0,0.00074444,120]
[394406510,1763535055115,-183.873104,0.00074444,120]
[394406511,1763535055124,-151.0,0.00074444,120]
[394406512,1763535055134,-151.0,0.00074444,120]
[394406513,1763535055143,-151.0,0.00074444,120]
[394406514,1763535055152,-151.0,0.00074444,120]
[394406515,1763535055162,-151.0,0.00074444,120]
[394406516,1763535055172,-151.0,0.00074444,120]
[394406517,1763535055181,-151.0,0.00074444,120]
[394406518,1763535055191,-259.243122,0.00074444,120]
[394406519,1763535055200,-321.445569,0.00074444,120]
[394406520,1763535055209,-321.445569,0.00074444,120]
[394406521,1763535055219,-321.445569,0.00074444,120]
[394406522,1763535055228,-321.445569,0.00074444,120]
[394406523,1763535055238,-632.754251,0.00074444,120]
[394406524,1763535055247,-632.754251,0.00074444,120]
[394406525,1763535055257,-632.754251,0.00074444,120]
[394406526,1763535055266,-151.0,0.00074444,120]
[394406527,1763535055276,-189.187773,0.00074444,120]
[394406528,1763535055285,-632.754251,0.00074444,120]
[394406529,1763535055295,-151.0,0.00074444,120]
[394406530,1763535055304,-189.187773,0.00074444,120]
[394406531,1763535055314,-189.187773,0.00074444,120]
[394406532,1763535055324,-151.0,0.00074444,120]
[394406533,1763535055333,-189.187773,0.00074444,120]
[394406534,1763535055343,-151.0,0.00074444,120]
[394406535,1763535055351,-151.0,0.00074444,120]
[394406536,1763535055360,-151.0,0.00074444,120]
[394406537,1763535055369,-151.0,0.00074444,120]
[394406538,1763535055379,-151.0,0.00074444,120]
[394406539,1763535055388,-151.0,0.00074444,120]
[394406540,1763535055397,-151.0,0.00074444,120]
[394406541,1763535055407,-151.0,0.00074444,120]
[394406542,1763535055416,-151.0,0.00074444,120]
[394406543,1763535055527,-151.0,0.00074444,120]
[394406544,1763535055541,-151.0,0.00074444,120]
[394406545,1763535055550,-151.0,0.00074444,120]
[394406546,1763535055559,-151.0,0.00074444,120]
[394406547,1763535055569,-151.0,0.00074444,120]
[394406548,1763535055578,-151.0,0.00074444,120]
[394406549,1763535055588,-171.445903,0.00074444,120]
[394406550,1763535055597,-171.445903,0.00074444,120]
[394406551,1763535055606,-171.445903,0.00074444,120]
[394406552,1763535055616,-171.445903,0.00074444,120]
[394406553,1763535055626,-151.0,0.00074444,120]
[394406554,1763535055635,-170.615422,0.00074444,120]
[394406555,1763535055649,-151.0,0.00074444,2]
[394406556,1763535055659,-151.0,0.00074444,15]
[394406557,1763535055668,-151.0,0.00074444,15]
[394406558,1763535055678,-151.0,0.00074444,15]
[394406559,1763535055687,-255.865776,0.00074444,15]
[394406560,1763535055697,-151.0,0.00074444,120]
[394406561,1763535055706,-151.0,0.00074444,120]
[394406562,1763535055716,-169.871767,0.00074444,120]
[394406563,1763535055725,-151.0,0.00074444,120]
[394406564,1763535055735,-151.0,0.00074444,120]
[394406565,1763535055744,-160.070895,0.00074444,120]
[394406566,1763535055753,-231.129182,0.00074444,120]
[394406567,1763535055763,-160.070895,0.00074444,120]
[394406568,1763535055772,-231.129182,0.00074444,120]
[394406569,1763535055782,-160.070895,0.00074444,120]
[394406570,1763535055792,-259.977634,0.00074444,7]
[394406571,1763535055801,-244.943787,0.00074444,120]
[394406572,1763535055811,-231.129182,0.00074444,120]
[394406573,1763535055821,-160.070895,0.00074444,120]
[394406574,1763535055830,-244.943787,0.00074444,120]
[394406575,1763535055840,-231.129182,0.00074444,120]
[394406576,1763535055849,-259.977634,0.00074444,7]
[394406577,1763535055858,-244.943787,0.00074444,120]
[394406578,1763535055868,-259.977634,0.00074444,7]
[394406579,1763535055882,-244.943787,0.00074444,120]
[394406580,1763535055892,-259.977634,0.00074444,7]
[394406581,1763535055902,-151.0,0.00074444,120]
[394406582,1763535055911,-151.0,0.00074444,120]
[394406583,1763535055922,-151.0,0.00074444,120]
[394406584,1763535055931,-151.0,0.00074444,120]
[394406585,1763535055940,-172.757734,0.00074444,120]
[394406586,1763535055951,-151.0,0.00074444,120]
[394406587,1763535055961,-151.0,0.00074444,120]
[394406588,1763535055970,-151.0,0.00074444,120]
[394406589,1763535055980,-151.0,0.00074444,120]
[394406590,1763535055989,-17248.11667685,0.000749,120]
[394406591,1763535055998,-210.63814089,0.00075,2]
[394406592,1763535056007,-1000.0,0.00075,120]
[394406593,1763535056017,-1998.24472818,0.00075,120]
[394406594,1763535056026,-1261.69503432,0.00075,120]
[394406595,1763535056035,-11824.9494056,0.00075444,120]
[394406596,1763535056044,-241.13,0.00076742,120]
[394406597,1763535056054,-169.0,0.00077,120]
[394406598,1763535056063,-3430.70652508,0.000777,120]
[394406599,1763535056072,-97678.87063167,0.00078388,120]
[394406600,1763535056081,-1132.720159,0.00078587,120]
[394406601,1763535056092,-50000.0,0.000789,120]
[394406602,1763535056101,-5000.0,0.0008,120]
[394406603,1763535056110,-500.0,0.0008,120]
[394406604,1763535056119,-1998.24472818,0.0008,120]
[394406605,1763535056128,-679.9487703,0.0008,50]
[394406606,1763535056138,-4034.0,0.0008,120]
[394406607,1763535056147,-176.0,0.0008,120]
[394406608,1763535056156,-642.5956158,0.0008,120]
[394406609,1763535056166,-1803.181745,0.0008,120]
[394406610,1763535056176,-2500.0,0.000804,120]
[394406611,1763535056185,-4999.99999901,0.000835,120]
[394406612,1763535056194,-345.91266578,0.00084,120]
[394406613,1763535056204,-50100.8283499,0.00084,120]
[394406614,1763535056213,-10000.0,0.0008438,120]
[394406615,1763535056223,-30492.78819455,0.0008438,120]
[394406616,1763535056233,-1000.0,0.00084441,120]
[394406617,1763535056243,-2841398.6931,0.00084444,30]
[394406618,1763535056252,-151.0,0.00084444,120]
[394406619,1763535056261,-151.0,0.00084444,120]
[394406620,1763535056270,-151.0,0.00084444,120]
[394406621,1763535056280,-151.0,0.00084444,120]
[394406622,1763535056290,-151.0,0.00084444,120]
[394406623,1763535056299,-290.419288,0.00084444,120]
[394406624,1763535056308,-151.0,0.00084444,120]
[394406625,1763535056318,-151.0,0.00084444,120]
[394406626,1763535056328,-151.0,0.00084444,120]
[394406627,1763535056337,-164.02767,0.00084444,120]
[394406628,1763535056347,-321.445569,0.00084444,120]
[394406629,1763535056356,-321.445569,0.00084444,120]
[394406630,1763535056366,-321.445569,0.00084444,120]
[394406631,1763535056375,-321.445569,0.00084444,120]
[394406632,1763535056385,-632.754251,0.00084444,120]
[394406633,1763535056394,-632.754251,0.00084444,120]
[394406634,1763535056403,-632.754251,0.00084444,120]
[394406635,1763535056413,-151.0,0.00084444,120]
[394406636,1763535056422,-189.187773,0.00084444,120]
[394406637,1763535056431,-632.754247,0.00084444,120]
[394406638,1763535056441,-151.0,0.00084444,120]
[394406639,1763535056450,-189.187773,0.00084444,120]
[394406640,1763535056459,-151.0,0.00084444,120]
[394406641,1763535056469,-189.187773,0.00084444,120]
[394406642,1763535056479,-189.187778,0.00084444,120]
[394406643,1763535056488,-151.0,0.00084444,120]
[394406644,1763535056498,-151.0,0.00084444,120]
[394406645,1763535056507,-170.844153,0.00084444,120]
[394406646,1763535056517,-151.0,0.00084444,120]
[394406647,1763535056526,-151.0,0.00084444,120]
[394406648,1763535056536,-151.0,0.00084444,120]
[394406649,1763535056546,-151.0,0.00084444,120]
[394406650,1763535056556,-169.487472,0.00084444,120]
[394406651,1763535056565,-151.0,0.00084444,120]
[394406652,1763535056575,-151.0,0.00084444,120]
[394406653,1763535056585,-151.0,0.00084444,120]
[394406654,1763535056594,-151.0,0.00084444,120]
[394406655,1763535056604,-171.445903,0.00084444,120]
[394406656,1763535056614,-171.445903,0.00084444,120]
[394406657,1763535056624,-171.445903,0.00084444,120]
[394406658,1763535056634,-171.445899,0.00084444,120]
[394406659,1763535056643,-223.76902,0.00084444,120]
[394406660,1763535056652,-151.0,0.00084444,2]
[394406661,1763535056662,-151.0,0.00084444,15]
[394406662,1763535056671,-151.0,0.00084444,15]